lending/lending_fUSD_20251021
["ID","MTS","AMOUNT","RATE_DAILY","PERIOD"]
[391991669,1761066644857,-2453.72414281,0.00025628,2]
[391991671,1761066644867,-11822.3982805,0.00025715,2]
[391991673,1761066644876,-204.225899,0.00025725,7]
[391991675,1761066644885,-151.0,0.00025725,7]
[391991677,1761066644894,-151.0,0.00025725,7]
[391991679,1761066644903,-572.0,0.00025726,2]
[391991681,1761066644912,-818.0,0.00025726,2]
[391991683,1761066644922,-2052.0,0.00025726,2]
[391991685,1761066644931,-1311.0,0.00025726,2]
[391991687,1761066644941,-605.0,0.00025726,2]
[391991689,1761066644951,-1590.0,0.00025726,2]
[391991691,1761066644960,-160.0874055,0.00025773,2]
[391991693,1761066644969,-3424.86746642,0.00025804,2]
[391991695,1761066644978,-159.0,0.0002589,7]
[391991697,1761066644988,-1000.0,0.00026,2]
[391991699,1761066644997,-229.58437114,0.00026044,2]
[391991701,1761066645007,-153.72555772,0.00026067,2]
[391991703,1761066645017,-11822.3982805,0.00026141,2]
[391991705,1761066645026,-500.0,0.00026161,2]
[391991707,1761066645036,-11822.3982805,0.00026282,2]
[391991709,1761066645045,-7547.53580015,0.00026282,2]
[391991711,1761066645054,-500.0,0.00026288,2]
[391991713,1761066645064,-520.16,0.00026291,2]
[391991715,1761066645074,-11822.3982805,0.00026292,2]
[391991717,1761066645083,-151.0,0.00026292,7]
[391991719,1761066645092,-151.0,0.00026292,7]
[391991721,1761066645101,-271.458842,0.00026292,7]
[391991723,1761066645110,-151.0,0.00026292,7]
[391991725,1761066645120,-151.0,0.00026292,7]
[391991727,1761066645130,-151.0,0.00026292,7]
[391991729,1761066645140,-151.0,0.00026292,7]
[391991731,1761066645149,-264.829682,0.00026292,7]
[391991733,1761066645159,-151.0,0.00026292,7]
[391991736,1761066645169,-7092.5155,0.00026292,7]
[391991738,1761066645178,-7092.5155,0.00026292,7]
[391991739,1761066645187,-151.0,0.00026292,7]
[391991741,1761066645197,-7092.5155,0.00026292,7]
[391991744,1761066645206,-7092.5155,0.00026292,7]
[391991745,1761066645215,-1927.32238,0.00026292,7]
[391991748,1761066645224,-1927.32238,0.00026292,7]
[391991749,1761066645234,-1927.32238,0.00026292,7]
[391991751,1761066645243,-1927.32238,0.00026292,7]
[391991753,1761066645252,-151.0,0.00026292,7]
[391991755,1761066645263,-283.541349,0.00026292,7]
[391991757,1761066645273,-151.0,0.00026292,7]
[391991759,1761066645283,-151.722293,0.00026292,7]
[391991761,1761066645293,-151.0,0.00026292,7]
[391991763,1761066645303,-15095.0716003,0.00026292,2]
[391991765,1761066645313,-5513.0,0.000263,5]
[391991767,1761066645322,-23644.796561,0.00026302,2]
[391991769,1761066645332,-22642.6074005,0.00026302,2]
[391991771,1761066645343,-20000.0,0.00026312,2]
[391991773,1761066645354,-151.0,0.00026312,7]
[391991775,1761066645364,-151.0,0.00026312,7]
[391991777,1761066645374,-380.82,0.00026356,2]
[391991779,1761066645383,-198.91679932,0.00026581,5]
[391991781,1761066645393,-817.0,0.00026635,2]
[391991783,1761066645402,-371.56,0.00026676,2]
[391991785,1761066645411,-7547.53580015,0.00026714,2]
[391991787,1761066645421,-11822.3982805,0.00026724,2]
[391991789,1761066645430,-711.45,0.00026734,2]
[391991791,1761066645439,-695.75,0.00026734,2]
[391991793,1761066645448,-485.85,0.00026734,2]
[391991795,1761066645458,-950.22,0.00026734,2]
[391991797,1761066645467,-475.11,0.00026734,2]
[391991799,1761066645477,-7547.53580015,0.00026782,2]
[391991801,1761066645486,-11822.3982805,0.00026792,2]
[391991803,1761066645495,-7547.53580015,0.00026792,2]
[391991805,1761066645504,-1927.32238,0.000268,7]
[391991807,1761066645518,-1927.32238,0.000268,7]
[391991809,1761066645527,-1927.32238,0.000268,7]
[391991812,1761066645537,-1927.32238,0.000268,7]
[391991814,1761066645547,-151.0,0.000268,7]
[391991816,1761066645555,-151.0,0.000268,7]
[391991818,1761066645564,-7547.53580015,0.00026801,2]
[391991820,1761066645573,-151.0,0.00026802,7]
[391991821,1761066645583,-151.0,0.00026802,7]
[391991822,1761066645592,-286.511307,0.00026802,7]
[391991823,1761066645601,-151.0,0.00026802,7]
[391991824,1761066645610,-192.243263,0.00026802,7]
[391991825,1761066645619,-7092.5155,0.00026802,7]
[391991826,1761066645629,-7092.5155,0.00026802,7]
[391991827,1761066645638,-7092.5155,0.00026802,7]
[391991829,1761066645647,-7092.5155,0.00026802,7]
[391991830,1761066645656,-11822.3982805,0.00026802,2]
[391991833,1761066645666,-22642.6074005,0.00026802,2]
[391991835,1761066645679,-11822.3982805,0.00026811,2]
[391991836,1761066645688,-26230.74,0.00026812,2]
[391991838,1761066645698,-151.0,0.00026812,7]
[391991840,1761066645707,-151.0,0.00026812,7]
[391991843,1761066645717,-151.0,0.00026812,7]
[391991845,1761066645726,-3424.86746642,0.00026858,2]
[391991847,1761066645736,-152.0,0.00026863,4]
[391991849,1761066645746,-353.08633386,0.0002689,2]
[391991851,1761066645756,-7547.53580015,0.0002696,2]
[391991852,1761066645767,-11822.3982805,0.0002697,2]
[391991854,1761066645776,-7547.53580015,0.0002697,2]
[391991857,1761066645787,-151.0,0.0002698,7]
[391991859,1761066645797,-520.16,0.0002698,2]
[391991860,1761066645806,-16088.70979564,0.0002698,2]
[391991863,1761066645821,-7556.08676536,0.0002698,2]
[391991865,1761066645830,-14973.91323465,0.0002698,2]
[391991867,1761066645841,-7668.69416585,0.0002698,2]
[391991869,1761066645850,-26544.97521463,0.0002699,2]
[391991877,1761066645910,-4093.14369564,0.0002699,2]
[391991879,1761066645921,-1705.80366141,0.0002699,2]
[391992009,1761066647051,-1027.676213,0.00025725,7]
[391992011,1761066647061,-14945.67055032,0.0002699,2]
[391992013,1761066647070,-14026.57003668,0.0002699,2]
[391992093,1761066648200,-12.13438831,0.0002699,2]
[391992095,1761066648212,-444.52577509,0.0002699,2]
[391992098,1761066648227,-311.52500871,0.0002699,2]
[391992100,1761066648238,-1500.0,0.0002699,2]
[391992103,1761066648261,-418.06931013,0.0002699,2]
[391992106,1761066648277,-1027.676213,0.00026312,7]
[391992108,1761066648286,-4016.3595759,0.0002699,2]
[391992142,1761067005452,-158.81171576,0.000149,2]
[391992198,1761067361245,1000.0,0.00034316,30]
[391992199,1761067363997,1000.0,0.00034316,30]
[391992200,1761067364911,1000.0,0.00034316,30]
[391992201,1761067365915,1000.0,0.00034316,30]
[391992202,1761067367096,1000.0,0.00034316,30]
[391992217,1761067449420,342.0,0.00034316,30]
[391992267,1761067723264,8402.72109376,0.0001,2]
[391992300,1761067831463,-609.0,0.00014898,2]
[391992302,1761067831472,-300.0,0.00014898,2]
[391992303,1761067831481,-1200.0,0.00014898,2]
[391992304,1761067831491,-300.0,0.00014898,2]
[391992305,1761067831501,-300.0,0.00014898,2]
[391992306,1761067831511,-1578.44562253,0.00014898,2]
[391992307,1761067831521,-195.0,0.00014898,2]
[391992308,1761067831530,-2719.29510572,0.00014898,2]
[391992309,1761067831539,-150.0,0.00014899,2]
[391992310,1761067831549,-341.18828424,0.000149,2]
[391992311,1761067831559,-500.0,0.000149,2]
[391992312,1761067831569,-500.0,0.000149,2]
[391992313,1761067831579,-500.0,0.000149,2]
[391992314,1761067831589,-500.0,0.000149,2]
[391992315,1761067831598,-500.0,0.000149,2]
[391992316,1761067831608,-500.0,0.000149,2]
[391992317,1761067831619,-500.0,0.000149,2]
[391992318,1761067831628,-500.0,0.000149,2]
[391992319,1761067831637,-500.0,0.000149,2]
[391992320,1761067831647,-185.91282753,0.000149,2]
[391992321,1761067831657,-406.5976115,0.000149,2]
[391992322,1761067831667,-940.449311,0.000149,2]
[391992323,1761067831677,-500.0,0.00014973,2]
[391992324,1761067831686,-500.0,0.00014973,2]
[391992325,1761067831695,-267.23616797,0.0001499,2]
[391992326,1761067831705,-582.28,0.0001499,2]
[391992327,1761067831714,-363.53674445,0.0001499,2]
[391992328,1761067831725,-218.74325555,0.0001499,2]
[391992329,1761067831736,-172.46748835,0.00014999,2]
[391992330,1761067831749,-3.39667257,0.00014999,2]
[391992331,1761067831758,-644.52671549,0.00014999,2]
[391992332,1761067831768,-191.76759299,0.00014999,2]
[391992333,1761067831778,-160.0,0.00015,2]
[391992334,1761067831787,-1904.45225256,0.00015,2]
[391992335,1761067831799,-1635.80895032,0.00015,2]
[391992336,1761067831810,-501.64312512,0.00015,2]
[391992337,1761067831832,-3021.63240502,0.00015,2]
[391992338,1761067831842,-11258.5892,0.00015,2]
[391992339,1761067831857,-20952.89865754,0.00015,2]
[391992340,1761067831869,-563.0625,0.00015,2]
[391992341,1761067831881,-50027.44662405,0.00015,2]
[391992342,1761067831890,-119388.27169924,0.00015,2]
[391992343,1761067831918,-9115.48375912,0.00015,2]
[391992871,1761067837509,-21906.01044151,0.00015,2]
[391992877,1761067837556,-112190.1834765,0.00015,2]
[391992921,1761067837951,-6205.08533541,0.00015,2]
[391992924,1761067837962,-1566.88726288,0.00015,2]
[391992926,1761067837973,-3696.7167964,0.00015,2]
[391992928,1761067837984,-1297.55157849,0.00015,2]
[391993066,1761067839438,-3788.29713853,0.00015,2]
[391993070,1761067839450,-3372.7,0.00015,2]
[391993356,1761067842586,-451.6,0.00015,2]
[391993359,1761067842597,-540355.74124253,0.00015,2]
[391993372,1761067842747,-7287.21539579,0.00015,2]
[391993373,1761067842802,-22430.0,0.00015,2]
[391993666,1761067845856,-498.8625,0.00015,2]
[391993678,1761067845964,-1122.89296,0.00015,2]
[391994684,1761068058129,10000.0,0.00034316,120]
[391994696,1761068073487,17256.15233451,0.00034316,30]
[391994697,1761068106229,156.6,0.00024674,120]
[391994711,1761068191516,200.0,0.00034316,120]
[391994782,1761068655161,398.0,0.00034319,30]
[391994809,1761069031642,-250.0,0.000146,2]
[391994811,1761069031693,-250.0,0.000146,2]
[391994812,1761069031703,-195.0,0.00014606,2]
[391994813,1761069031713,-1882.71,0.00014766,2]
[391994814,1761069031723,-195.0,0.00014772,2]
[391994815,1761069031733,-1200.0,0.00014898,2]
[391994816,1761069031743,-150.0,0.00014899,2]
[391994817,1761069031753,-300.0,0.00014899,2]
[391994818,1761069031765,-408.88569996,0.000149,2]
[391994819,1761069031775,-7911.7305,0.000149,2]
[391994820,1761069031785,-4395.41929314,0.000149,2]
[391994821,1761069031797,-1450.0,0.000149,2]
[391994822,1761069031808,-2981.31099151,0.000149,2]
[391994823,1761069031820,-2537.17592943,0.000149,2]
[391994824,1761069031842,-37728.14758592,0.000149,2]
[391994825,1761069031853,-4209.0028386,0.000149,2]
[391994826,1761069031869,-790.9971614,0.000149,2]
[391994827,1761069031879,-2932.64024389,0.000149,2]
[391994828,1761069031891,-400.0,0.000149,2]
[391994829,1761069031904,-4322.62150548,0.000149,2]
[391994830,1761069031916,-154.09066896,0.000149,2]
[391994831,1761069031928,-6967.36837108,0.000149,2]
[391994832,1761069031938,-511.18920727,0.00014973,2]
[391994833,1761069031948,-750.3,0.00014991,2]
[391994834,1761069031958,-255.84379406,0.00014991,2]
[391994836,1761069031967,-151.0,0.00014991,2]
[391994838,1761069031977,-151.0,0.00014991,2]
[391994840,1761069031987,-151.0,0.00014991,2]
[391994842,1761069031996,-151.0,0.00014991,2]
[391994844,1761069032006,-151.0,0.00014991,2]
[391994846,1761069032018,-151.0,0.00014991,2]
[391994848,1761069032027,-151.0,0.00014991,2]
[391994850,1761069032036,-151.0,0.00014991,2]
[391994851,1761069032046,-151.0,0.00014991,2]
[391994852,1761069032056,-151.0,0.00014991,2]
[391994853,1761069032065,-151.0,0.00014991,2]
[391994854,1761069032075,-151.0,0.00014991,2]
[391994855,1761069032085,-151.0,0.00014991,2]
[391994856,1761069032095,-151.0,0.00014991,2]
[391994858,1761069032104,-7833.55,0.00014991,2]
[391994860,1761069032114,-151.0,0.00014991,2]
[391994862,1761069032124,-151.0,0.00014991,2]
[391994866,1761069032134,-2520.63,0.00014991,2]
[391994868,1761069032143,-151.0,0.00014991,2]
[391994870,1761069032153,-151.0,0.00014991,2]
[391994872,1761069032163,-151.0,0.00014991,2]
[391994874,1761069032173,-3924.5,0.00014991,2]
[391994876,1761069032182,-151.0,0.00014991,2]
[391994878,1761069032192,-292.41506926,0.00014999,2]
[391994879,1761069032201,-2243.4512005,0.00014999,2]
[391994880,1761069032211,-17444.8066733,0.00014999,2]
[391994881,1761069032220,-16924.04558217,0.00014999,2]
[391994882,1761069032232,-18378.44619263,0.00014999,2]
[391994883,1761069032242,-500.0,0.00014999,2]
[391994884,1761069032252,-347.12,0.00014999,2]
[391994885,1761069032265,-500.0,0.00014999,2]
[391994886,1761069032275,-500.0,0.00014999,2]
[391994887,1761069032284,-500.0,0.00014999,2]
[391994888,1761069032294,-500.0,0.00014999,2]
[391994889,1761069032304,-500.0,0.00014999,2]
[391994890,1761069032314,-500.0,0.00014999,2]
[391994891,1761069032323,-500.0,0.00014999,2]
[391994892,1761069032336,-1333406.27913668,0.00015,2]
[391994893,1761069032348,-169570.43036199,0.00015,2]
[391994894,1761069032361,-57439.58564892,0.00015,2]
[391994895,1761069032371,-2015.29996,0.00015,2]
[391994896,1761069032381,-434.19822,0.00015,2]
[391994897,1761069032391,-151.0,0.00015192,2]
[391994898,1761069032402,-151.0,0.00015192,2]
[391994899,1761069032412,-151.0,0.00015193,2]
[391994900,1761069032422,-151.0,0.00015193,2]
[391994901,1761069032431,-151.0,0.00015194,2]
[391994902,1761069032442,-200.0,0.00015238,2]
[391994903,1761069032451,-750.3,0.00015265,2]
[391994904,1761069032461,-162.24,0.00015308,2]
[391994905,1761069032473,-5201.87,0.00015308,2]
[391994906,1761069032482,-750.3,0.00015539,2]
[391994907,1761069032491,-166.66,0.00015719,2]
[391994908,1761069032501,-750.3,0.00015813,2]
[391994909,1761069032513,-255.0,0.00016031,2]
[391994910,1761069032524,-166.66,0.0001605,2]
[391994911,1761069032534,-150.0,0.0001606,2]
[391994912,1761069032543,-4000.0,0.0001606,2]
[391994913,1761069032553,-898.1440483,0.0001606,2]
[391994914,1761069032563,-1531.70269604,0.0001606,2]
[391994915,1761069032574,-195.0,0.0001606,2]
[391994916,1761069032584,-250.0,0.0001606,2]
[391994917,1761069032595,-150.0,0.0001606,2]
[391994918,1761069032604,-300.0,0.0001606,2]
[391994919,1761069032614,-2500.0,0.0001606,2]
[391994920,1761069032624,-750.3,0.00016087,2]
[391994921,1761069032633,-5000.00708666,0.000162,5]
[391994922,1761069032644,-420.0,0.00016308,2]
[391994923,1761069032654,-750.339664,0.00016361,2]
[391994924,1761069032664,-166.66,0.00016381,2]
[391994925,1761069032673,-1680.0,0.00016388,2]
[391994926,1761069032683,-156.6,0.00016449,2]
[391994927,1761069032692,-938.68,0.00016504,2]
[391994928,1761069032702,-311.05,0.00016517,2]
[391994929,1761069032711,-1000.0,0.00016606,2]
[391994930,1761069032721,-250.0,0.0001663,2]
[391994931,1761069032730,-166.66,0.00016712,2]
[391994932,1761069032741,-187.03,0.00016712,2]
[391994933,1761069032752,-11035.84766357,0.00016776,2]
[391994934,1761069032762,-921.62,0.00016804,2]
[391994935,1761069032772,-162.24,0.00016839,2]
[391994936,1761069032782,-3892.4625067,0.00016906,2]
[391994937,1761069032792,-7877.0506433,0.00016906,2]
[391994938,1761069032801,-434.19822,0.00017,2]
[391994939,1761069032811,-166.66,0.00017043,2]
[391994940,1761069032820,-6967.36837099,0.00017047,2]
[391994941,1761069032831,-7655.26174929,0.00017047,2]
[391994942,1761069032840,-433.0,0.00017253,2]
[391994943,1761069032850,-154.09066888,0.00017317,2]
[391994944,1761069032861,-868.5257825,0.00017331,2]
[391994945,1761069032870,-1757.6075715,0.00017331,2]
[391994946,1761069033122,-166.66,0.00017374,2]
[391994947,1761069033132,-321.59268532,0.000175,2]
[391994948,1761069033143,-355.77291006,0.00017662,2]
[391994949,1761069033153,-587.0,0.0001785,2]
[391994950,1761069033163,-225.0,0.00017867,2]
[391994951,1761069033173,-476.03091061,0.00017949,2]
[391994952,1761069033183,-287.07,0.00017968,2]
[391994953,1761069033193,-20912.87078827,0.00018,2]
[391994954,1761069033204,-1022.0,0.00018027,2]
[391994955,1761069033214,-408.88569992,0.00018123,2]
[391994956,1761069033223,-250.0,0.00018207,2]
[391994957,1761069033234,-162.24,0.0001837,2]
[391994958,1761069033243,-455.0,0.00018564,2]
[391994959,1761069033254,-1000.0,0.00018681,2]
[391994960,1761069033266,-3386.95615495,0.0001876,2]
[391994961,1761069033276,-151.0,0.000188,2]
[391994962,1761069033285,-153.0,0.00018904,2]
[391994963,1761069033295,-153.0,0.00018904,2]
[391994964,1761069033305,-153.0,0.00018904,2]
[391994965,1761069033315,-153.0,0.00018904,2]
[391994966,1761069033325,-153.0,0.00018904,2]
[391994967,1761069033338,-212.0,0.00018904,2]
[391994968,1761069033347,-212.0,0.00018904,2]
[391994969,1761069033357,-212.0,0.00018904,2]
[391994970,1761069033367,-212.0,0.00018904,2]
[391994971,1761069033377,-212.0,0.00018904,2]
[391994972,1761069033387,-212.0,0.00018904,2]
[391994973,1761069033397,-212.0,0.00018904,2]
[391994974,1761069033407,-212.0,0.00018904,2]
[391994975,1761069033417,-212.0,0.00018904,2]
[391994976,1761069033427,-212.0,0.00018904,2]
[391994977,1761069033436,-212.0,0.00018904,2]
[391994978,1761069033446,-212.0,0.00018904,2]
[391994979,1761069033456,-153.0,0.00018904,2]
[391994980,1761069033466,-153.0,0.00018904,2]
[391994981,1761069033476,-153.0,0.00018904,2]
[391994982,1761069033486,-153.0,0.00018904,2]
[391994983,1761069033495,-153.0,0.00018904,2]
[391994984,1761069033505,-153.0,0.00018904,2]
[391994985,1761069033516,-153.0,0.00018904,2]
[391994986,1761069033526,-153.0,0.00018904,2]
[391994987,1761069033536,-153.0,0.00018904,2]
[391994988,1761069033545,-153.0,0.00018904,2]
[391994989,1761069033555,-328.0,0.00018904,2]
[391994990,1761069033565,-328.0,0.00018904,2]
[391994991,1761069033575,-328.0,0.00018904,2]
[391994992,1761069033584,-328.0,0.00018904,2]
[391994993,1761069033594,-328.0,0.00018904,2]
[391994994,1761069033604,-328.0,0.00018904,2]
[391994995,1761069033614,-328.0,0.00018904,2]
[391994996,1761069033624,-328.0,0.00018904,2]
[391994997,1761069033633,-328.0,0.00018904,2]
[391994998,1761069033643,-328.0,0.00018904,2]
[391994999,1761069033652,-328.0,0.00018904,2]
[391995000,1761069033661,-328.0,0.00018904,2]
[391995001,1761069033671,-328.0,0.00018904,2]
[391995002,1761069033680,-153.0,0.00018904,2]
[391995003,1761069033690,-153.0,0.00018904,2]
[391995004,1761069033699,-153.0,0.00018904,2]
[391995005,1761069033709,-153.0,0.00018904,2]
[391995006,1761069033720,-153.0,0.00018904,2]
[391995007,1761069033730,-153.0,0.00018904,2]
[391995008,1761069033739,-153.0,0.00018904,2]
[391995009,1761069033748,-153.0,0.00018904,2]
[391995010,1761069033758,-153.0,0.00018904,2]
[391995011,1761069033769,-153.0,0.00018904,2]
[391995012,1761069033779,-180.0,0.00018904,2]
[391995013,1761069033789,-180.0,0.00018904,2]
[391995014,1761069033799,-180.0,0.00018904,2]
[391995015,1761069033808,-180.0,0.00018904,2]
[391995016,1761069033818,-180.0,0.00018904,2]
[391995017,1761069033828,-180.0,0.00018904,2]
[391995018,1761069033837,-180.0,0.00018904,2]
[391995019,1761069033847,-180.0,0.00018904,2]
[391995020,1761069033856,-180.0,0.00018904,2]
[391995021,1761069033866,-180.0,0.00018904,2]
[391995022,1761069033875,-180.0,0.00018904,2]
[391995023,1761069033886,-180.0,0.00018904,2]
[391995024,1761069033896,-180.0,0.00018904,2]
[391995025,1761069033905,-153.0,0.00018904,2]
[391995026,1761069033915,-153.0,0.00018904,2]
[391995027,1761069033925,-153.0,0.00018904,2]
[391995028,1761069033934,-153.0,0.00018904,2]
[391995029,1761069033945,-153.0,0.00018904,2]
[391995030,1761069033955,-153.0,0.00018904,2]
[391995031,1761069033965,-153.0,0.00018904,2]
[391995032,1761069033975,-153.0,0.00018904,2]
[391995033,1761069033986,-153.0,0.00018904,2]
[391995034,1761069033996,-153.0,0.00018904,2]
[391995035,1761069034007,-211.0,0.00018904,2]
[391995036,1761069034018,-211.0,0.00018904,2]
[391995037,1761069034028,-211.0,0.00018904,2]
[391995038,1761069034038,-211.0,0.00018904,2]
[391995039,1761069034047,-211.0,0.00018904,2]
[391995040,1761069034057,-211.0,0.00018904,2]
[391995041,1761069034066,-211.0,0.00018904,2]
[391995042,1761069034076,-211.0,0.00018904,2]
[391995043,1761069034085,-211.0,0.00018904,2]
[391995044,1761069034097,-211.0,0.00018904,2]
[391995045,1761069034107,-211.0,0.00018904,2]
[391995046,1761069034116,-211.0,0.00018904,2]
[391995047,1761069034125,-211.0,0.00018904,2]
[391995048,1761069034135,-153.0,0.00018904,2]
[391995049,1761069034145,-153.0,0.00018904,2]
[391995050,1761069034155,-153.0,0.00018904,2]
[391995051,1761069034164,-153.0,0.00018904,2]
[391995052,1761069034174,-153.0,0.00018904,2]
[391995053,1761069034184,-153.0,0.00018904,2]
[391995054,1761069034193,-153.0,0.00018904,2]
[391995055,1761069034203,-153.0,0.00018904,2]
[391995056,1761069034212,-153.0,0.00018904,2]
[391995057,1761069034222,-153.0,0.00018904,2]
[391995058,1761069034232,-196.0,0.00018904,2]
[391995059,1761069034241,-196.0,0.00018904,2]
[391995060,1761069034251,-196.0,0.00018904,2]
[391995061,1761069034261,-196.0,0.00018904,2]
[391995062,1761069034270,-196.0,0.00018904,2]
[391995063,1761069034280,-196.0,0.00018904,2]
[391995064,1761069034289,-196.0,0.00018904,2]
[391995065,1761069034299,-196.0,0.00018904,2]
[391995066,1761069034308,-196.0,0.00018904,2]
[391995067,1761069034319,-196.0,0.00018904,2]
[391995068,1761069034330,-196.0,0.00018904,2]
[391995069,1761069034342,-196.0,0.00018904,2]
[391995070,1761069034351,-196.0,0.00018904,2]
[391995071,1761069034360,-153.0,0.00018904,2]
[391995072,1761069034370,-153.0,0.00018904,2]
[391995073,1761069034379,-153.0,0.00018904,2]
[391995074,1761069034388,-153.0,0.00018904,2]
[391995075,1761069034397,-153.0,0.00018904,2]
[391995076,1761069034407,-153.0,0.00018904,2]
[391995077,1761069034416,-153.0,0.00018904,2]
[391995078,1761069034425,-153.0,0.00018904,2]
[391995079,1761069034434,-153.0,0.00018904,2]
[391995080,1761069034444,-153.0,0.00018904,2]
[391995081,1761069034453,-284.30414903,0.00019,2]
[391995082,1761069034463,-1389.01619805,0.00019,2]
[391995083,1761069034473,-434.19822,0.00019,2]
[391995084,1761069034483,-6748.98776835,0.0001906,2]
[391995085,1761069034492,-6967.36837099,0.00019193,2]
[391995086,1761069034502,-7655.26174929,0.00019195,2]
[391995087,1761069034513,-460.06442092,0.00019364,2]
[391995088,1761069034523,-501.16874507,0.00019487,2]
[391995089,1761069034534,-500.0,0.00019487,2]
[391995090,1761069034543,-501.00490054,0.00019487,2]
[391995091,1761069034552,-503.3865569,0.00019487,2]
[391995092,1761069034562,-556.93962434,0.00019487,2]
[391995093,1761069034572,-343.28067368,0.00019487,2]
[391995094,1761069034581,-501.14771643,0.00019487,2]
[391995095,1761069034591,-160.0,0.00019538,2]
[391995096,1761069034600,-1124.5,0.00019726,2]
[391995097,1761069034610,-369.05705308,0.00019729,2]
[391995098,1761069034619,-154.09066888,0.00019734,2]
[391995099,1761069034629,-162.24,0.00019901,2]
[391995100,1761069034639,-151.0,0.0001994,2]
[391995101,1761069034649,-500.0,0.00019949,2]
[391995102,1761069034658,-86474.76068449,0.0001995,15]
[391995103,1761069034673,-43623.33663451,0.0001995,15]
[391995104,1761069034683,-500.65530496,0.00019973,2]
[391995105,1761069034692,-3411.0,0.00019996,2]
[391995106,1761069034701,-803.0,0.00019996,2]
[391995107,1761069034711,-572.0,0.00019996,2]
[391995108,1761069034720,-566.076,0.00019996,2]
[391995109,1761069034730,-605.0,0.00019996,2]
[391995110,1761069034740,-1590.0,0.00019996,2]
[391995111,1761069034749,-1311.0,0.00019996,2]
[391995112,1761069034759,-557.0,0.00019996,2]
[391995113,1761069034771,-668.176,0.00019996,2]
[391995114,1761069034781,-2591.0,0.00019996,2]
[391995115,1761069034791,-1402.24496387,0.0002,14]
[391995116,1761069034800,-1000.0,0.0002,4]
[391995117,1761069034810,-504.69188968,0.00020035,2]
[391995118,1761069034820,-4229.95874022,0.00020156,2]
[391995119,1761069034830,-56955.53986508,0.000202,2]
[391995120,1761069034839,-355.77291006,0.00020424,2]
[391995121,1761069034848,-156.6,0.00020561,2]
[391995122,1761069034857,-2187.01142,0.00020694,2]
[391995123,1761069034867,-117929.25269965,0.00020694,2]
[391995124,1761069034876,-1000.0,0.00020757,2]
[391995125,1761069034886,-434.19822,0.00021,2]
[391995126,1761069034895,-500.0,0.00021334,2]
[391995127,1761069034905,-153.665476,0.00021335,7]
[391995128,1761069034916,-151.0,0.00021335,7]
[391995129,1761069034926,-151.0,0.00021335,7]
[391995130,1761069034936,-151.0,0.00021335,7]
[391995131,1761069034947,-151.0,0.00021335,7]
[391995132,1761069034957,-152.741192,0.00021335,7]
[391995133,1761069034966,-151.0,0.00021335,7]
[391995134,1761069034975,-189.50889,0.00021335,7]
[391995135,1761069034985,-189.50889,0.00021335,7]
[391995136,1761069034996,-3212.716173,0.00021335,7]
[391995137,1761069035006,-189.50889,0.00021335,7]
[391995138,1761069035017,-3212.716173,0.00021335,7]
[391995139,1761069035026,-3212.716173,0.00021335,7]
[391995140,1761069035036,-189.50889,0.00021335,7]
[391995141,1761069035045,-3212.716173,0.00021335,7]
[391995142,1761069035055,-151.0,0.00021335,7]
[391995143,1761069035064,-6967.36837099,0.0002134,2]